fUSD/lending_fUSD_20240519
["ID","MTS","AMOUNT","RATE_DAILY","PERIOD"]
[327501666,1716126645821,-300.0,0.00027671,2]
[327501667,1716126645831,-500.0,0.00027733,2]
[327501668,1716126645841,-255.95,0.00027733,2]
[327501669,1716126645850,-769.96,0.00027733,2]
[327501670,1716126645859,-1491.39,0.00027733,2]
[327501671,1716126645869,-500.0,0.00027733,2]
[327501672,1716126645878,-500.0,0.00027733,2]
[327501673,1716126645887,-500.0,0.00027734,2]
[327501674,1716126645897,-1135.94,0.00027734,2]
[327501675,1716126645906,-1613.89,0.00027734,2]
[327501676,1716126645915,-564.8,0.00027734,2]
[327501677,1716126645924,-618.74,0.00027734,2]
[327501678,1716126645934,-500.0,0.00027734,2]
[327501679,1716126645943,-500.0,0.00027734,2]
[327501680,1716126645952,-500.0,0.00027734,2]
[327501681,1716126645962,-500.0,0.00027735,2]
[327501682,1716126645971,-646.47,0.00027736,2]
[327501683,1716126645981,-500.0,0.00027738,2]
[327501684,1716126645990,-300.0,0.00027808,2]
[327501685,1716126645999,-700.0,0.000279,10]
[327501686,1716126646009,-300.0,0.00027945,2]
[327501687,1716126646019,-550.6,0.00028007,2]
[327501688,1716126646029,-769.96,0.00028007,2]
[327501689,1716126646039,-1491.39,0.00028007,2]
[327501690,1716126646048,-500.0,0.00028007,2]
[327501691,1716126646057,-500.0,0.00028007,2]
[327501692,1716126646067,-500.0,0.00028008,2]
[327501693,1716126646076,-1135.94,0.00028008,2]
[327501694,1716126646086,-1613.89,0.00028008,2]
[327501695,1716126646095,-618.74,0.00028008,2]
[327501696,1716126646105,-500.0,0.00028008,2]
[327501697,1716126646115,-154.32,0.00028008,2]
[327501698,1716126646124,-500.0,0.00028008,2]
[327501699,1716126646133,-500.0,0.00028009,2]
[327501700,1716126646143,-646.47,0.0002801,2]
[327501701,1716126646152,-500.0,0.00028012,2]
[327501702,1716126646162,-300.0,0.00028082,2]
[327501703,1716126646171,-369.0,0.00028215,2]
[327501704,1716126646181,-300.0,0.00028219,2]
[327501705,1716126646190,-769.96,0.00028281,2]
[327501706,1716126646199,-1491.39,0.00028281,2]
[327501707,1716126646208,-226.47,0.00028281,2]
[327501708,1716126646218,-500.0,0.00028281,2]
[327501709,1716126646227,-500.0,0.00028282,2]
[327501710,1716126646237,-1135.94,0.00028282,2]
[327501711,1716126646246,-1613.89,0.00028282,2]
[327501712,1716126646255,-618.74,0.00028282,2]
[327501713,1716126646264,-500.0,0.00028282,2]
[327501714,1716126646274,-500.0,0.00028282,2]
[327501715,1716126646283,-500.0,0.00028283,2]
[327501716,1716126646292,-646.47,0.00028284,2]
[327501717,1716126646302,-500.0,0.00028286,2]
[327501718,1716126646311,-166.97,0.0002829,120]
[327501719,1716126646321,-300.0,0.00028356,2]
[327501720,1716126646330,-1373.1544,0.00028427,2]
[327501721,1716126646339,-71438.0976,0.00028427,2]
[327501722,1716126646349,-156.55,0.00028445,2]
[327501723,1716126646359,-300.0,0.00028493,2]
[327501724,1716126646368,-769.96,0.00028555,2]
[327501726,1716126646378,-1491.39,0.00028555,2]
[327501728,1716126646387,-238.31001992,0.00028555,2]
[327501730,1716126646397,-635.69097864,0.00028556,2]
[327501732,1716126646408,-1135.94,0.00028556,2]
[327501734,1716126646417,-1613.89,0.00028556,2]
[327501736,1716126646427,-618.74,0.00028556,2]
[327501738,1716126646436,-500.0,0.00028556,2]
[327501741,1716126646446,-500.0,0.00028556,2]
[327501743,1716126646455,-500.0,0.00028557,2]
[327501744,1716126646464,-646.47,0.00028558,2]
[327501746,1716126646473,-500.0,0.0002856,2]
[327501748,1716126646482,-544.0,0.000286,2]
[327501750,1716126646491,-1642.0,0.000286,2]
[327501752,1716126646501,-1262.0,0.000286,2]
[327501754,1716126646511,-207.143,0.000286,2]
[327501756,1716126646522,-1464.0,0.000286,2]
[327501758,1716126646531,-663.519,0.000286,2]
[327501760,1716126646540,-300.0,0.0002863,2]
[327501762,1716126646551,-1518.2303,0.00028733,2]
[327501764,1716126646561,-416.9821242,0.00028767,2]
[327501766,1716126646570,-769.96,0.00028829,2]
[327501768,1716126646580,-1491.39,0.00028829,2]
[327501770,1716126646591,-1135.94,0.0002883,2]
[327501772,1716126646600,-1613.89,0.0002883,2]
[327501774,1716126646609,-618.74,0.0002883,2]
[327501776,1716126646620,-500.0,0.0002883,2]
[327501778,1716126646630,-500.0,0.0002883,2]
[327501780,1716126646639,-500.0,0.00028831,2]
[327501782,1716126646648,-646.47,0.00028832,2]
[327501784,1716126646657,-500.0,0.00028833,2]
[327501786,1716126646666,-494.77,0.00028859,2]
[327501788,1716126646676,-155.0,0.00029,2]
[327501790,1716126646686,-769.96,0.00029103,2]
[327501792,1716126646696,-1491.39,0.00029103,2]
[327501794,1716126646705,-1135.94,0.00029104,2]
[327501795,1716126646715,-1613.89,0.00029104,2]
[327501798,1716126646724,-618.74,0.00029104,2]
[327501800,1716126646735,-500.0,0.00029104,2]
[327501802,1716126646745,-179.26866605,0.00029104,2]
[327501804,1716126646754,-500.0,0.00029105,2]
[327501806,1716126646765,-646.47,0.00029106,2]
[327501808,1716126646778,-319.46036023,0.00029107,2]
[327501810,1716126646787,-2100.0,0.00029224,2]
[327501812,1716126646796,-769.96,0.00029377,2]
[327501814,1716126646806,-1491.39,0.00029377,2]
[327501816,1716126646815,-1135.94,0.00029378,2]
[327501818,1716126646825,-1613.89,0.00029378,2]
[327501820,1716126646834,-618.74,0.00029378,2]
[327501822,1716126646844,-500.0,0.00029378,2]
[327501824,1716126646853,-500.0,0.00029379,2]
[327501826,1716126646863,-646.47,0.0002938,2]
[327501828,1716126646872,-988.72,0.00029425,2]
[327501830,1716126646881,-453.0,0.00029485,2]
[327501831,1716126646891,-769.96,0.00029651,2]
[327501833,1716126646900,-1491.39,0.00029651,2]
[327501835,1716126646910,-1135.94,0.00029652,2]
[327501837,1716126646919,-1613.89,0.00029652,2]
[327501839,1716126646928,-618.74,0.00029652,2]
[327501841,1716126646938,-500.0,0.00029652,2]
[327501842,1716126646947,-500.0,0.00029653,2]
[327501843,1716126646956,-646.47,0.00029654,2]
[327501844,1716126646966,-212.4282264,0.00029699,3]
[327501845,1716126646976,-769.96,0.00029925,2]
[327501846,1716126646986,-1491.39,0.00029925,2]
[327501847,1716126646995,-1135.94,0.00029926,2]
[327501848,1716126647006,-1613.89,0.00029926,2]
[327501849,1716126647015,-8.05294702,0.00029926,2]
[327501850,1716126647062,-502.89318022,0.00026366,2]
[327501851,1716126647072,-610.68705298,0.00029926,2]
[327501852,1716126647082,-500.0,0.00029926,2]
[327501853,1716126647092,-500.0,0.00029927,2]
[327501854,1716126647101,-646.47,0.00029928,2]
[327501855,1716126647111,-183.084,0.0003,4]
[327501856,1716126647121,-150.0,0.0003,2]
[327501857,1716126647130,-500.0,0.0003,2]
[327501858,1716126647140,-500.0,0.0003,2]
[327501859,1716126647150,-200.0,0.00030041,2]
[327501860,1716126647159,-1500.0,0.00030137,30]
[327501861,1716126647169,-769.96,0.00030199,2]
[327501862,1716126647178,-1491.39,0.00030199,2]
[327501863,1716126647187,-1135.94,0.000302,2]
[327501864,1716126647197,-1613.89,0.000302,2]
[327501865,1716126647207,-618.74,0.000302,2]
[327501866,1716126647216,-666.54,0.000302,2]
[327501867,1716126647226,-500.0,0.000302,2]
[327501868,1716126647235,-500.0,0.00030201,2]
[327501869,1716126647245,-646.47,0.00030202,2]
[327501870,1716126647255,-500.0,0.00030246,3]
[327501871,1716126647265,-500.0,0.00030255,3]
[327501872,1716126647276,-500.0,0.00030264,3]
[327501873,1716126647285,-500.0,0.00030273,3]
[327501874,1716126647294,-500.0,0.00030281,3]
[327501875,1716126647304,-500.0,0.0003029,3]
[327501876,1716126647313,-500.0,0.00030299,3]
[327501877,1716126647323,-187.8,0.00030466,120]
[327501878,1716126647333,-769.96,0.00030473,2]
[327501879,1716126647343,-1491.39,0.00030473,2]
[327501880,1716126647353,-1135.94,0.00030474,2]
[327501881,1716126647363,-1613.89,0.00030474,2]
[327501882,1716126647372,-618.74,0.00030474,2]
[327501883,1716126647381,-666.54,0.00030474,2]
[327501884,1716126647391,-500.0,0.00030474,2]
[327501885,1716126647401,-500.0,0.00030475,2]
[327501886,1716126647412,-646.47,0.00030476,2]
[327501887,1716126647422,-328.44,0.00030736,2]
[327501888,1716126647431,-769.96,0.00030747,2]
[327501889,1716126647440,-1491.39,0.00030747,2]
[327501890,1716126647450,-1135.94,0.00030748,2]
[327501891,1716126647459,-1613.89,0.00030748,2]
[327501892,1716126647469,-618.74,0.00030748,2]
[327501893,1716126647479,-666.54,0.00030748,2]
[327501894,1716126647489,-524.46,0.00030748,2]
[327501895,1716126647499,-476.12,0.00030749,2]
[327501896,1716126647508,-646.47,0.0003075,2]
[327501897,1716126647519,-558.0,0.00030811,2]
[327501898,1716126647529,-769.96,0.00031021,2]
[327501899,1716126647539,-1491.39,0.00031021,2]
[327501900,1716126647553,-1135.94,0.00031022,2]
[327501901,1716126647563,-1613.89,0.00031022,2]
[327501902,1716126647575,-618.74,0.00031022,2]
[327501903,1716126647585,-666.54,0.00031022,2]
[327501904,1716126647595,-646.47,0.00031024,2]
[327501905,1716126647605,-210.86034716,0.00031035,3]
[327501906,1716126647615,-177.68151497,0.00031123,2]
[327501907,1716126647625,-494.77,0.00031123,2]
[327501908,1716126647635,-500.0,0.00031215,3]
[327501909,1716126647646,-500.0,0.00031223,3]
[327501910,1716126647655,-500.0,0.00031232,3]
[327501911,1716126647665,-500.0,0.00031241,3]
[327501912,1716126647674,-500.0,0.0003125,3]
[327501913,1716126647684,-500.0,0.00031259,3]
[327501914,1716126647693,-500.0,0.00031267,3]
[327501915,1716126647703,-500.0,0.00031276,3]
[327501916,1716126647713,-769.96,0.00031295,2]
[327501917,1716126647724,-1491.39,0.00031295,2]
[327501918,1716126647735,-1135.94,0.00031296,2]
[327501919,1716126647744,-1613.89,0.00031296,2]
[327501920,1716126647754,-618.74,0.00031296,2]
[327501921,1716126647764,-666.54,0.00031296,2]
[327501922,1716126647775,-646.47,0.00031298,2]
[327501923,1716126647785,-166.97,0.00031434,120]
[327501924,1716126647796,-11616.03262966,0.00031462,2]
[327501925,1716126647806,-172.03572245,0.00031471,2]
[327501926,1716126647816,-769.96,0.00031569,2]
[327501927,1716126647826,-1491.39,0.00031569,2]
[327501928,1716126647836,-1135.94,0.0003157,2]
[327501929,1716126647847,-1613.89,0.0003157,2]
[327501930,1716126647857,-618.74,0.0003157,2]
[327501931,1716126647867,-646.47,0.00031572,2]
[327501932,1716126647876,-544.0,0.000316,2]
[327501933,1716126647885,-1642.0,0.000316,2]
[327501934,1716126647895,-1262.0,0.000316,2]
[327501935,1716126647905,-1500.0,0.000318,11]
[327501936,1716126647915,-769.96,0.00031843,2]
[327501937,1716126647924,-1491.39,0.00031843,2]
[327501938,1716126647934,-1135.94,0.00031844,2]
[327501939,1716126647944,-1613.89,0.00031844,2]
[327501940,1716126647953,-618.74,0.00031844,2]
[327501941,1716126647964,-666.54,0.00031844,2]
[327501942,1716126647974,-646.47,0.00031846,2]
[327501943,1716126647984,-2300.0,0.000319,11]
[327501944,1716126647994,-181.08506658,0.0003193,2]
[327501945,1716126648004,-6487.67541293,0.00032,2]
[327501946,1716126648014,-499437.10920241,0.00032035,21]
[327501947,1716126648025,-20758.53596531,0.00032035,30]
[327501948,1716126648035,-2030.1127064,0.00032035,120]
[327501949,1716126648044,-769.96,0.00032117,2]
[327501950,1716126648054,-1491.39,0.00032117,2]
[327501951,1716126648064,-1135.94,0.00032118,2]
[327501952,1716126648074,-1613.89,0.00032118,2]
[327501953,1716126648083,-618.74,0.00032118,2]
[327501954,1716126648093,-666.54,0.00032118,2]
[327501955,1716126648103,-646.47,0.0003212,2]
[327501956,1716126648113,-234.0,0.00032198,3]
[327501957,1716126648123,-769.96,0.00032391,2]
[327501958,1716126648132,-1491.39,0.00032391,2]
[327501959,1716126648142,-1135.94,0.00032392,2]
[327501960,1716126648152,-1613.89,0.00032392,2]
[327501961,1716126648161,-618.74,0.00032392,2]
[327501962,1716126648172,-666.54,0.00032392,2]
[327501963,1716126648182,-646.47,0.00032394,2]
[327501964,1716126648191,-177.38452581,0.00032477,2]
[327501965,1716126648201,-770.17,0.00032665,2]
[327501966,1716126648211,-1491.51759523,0.00032665,2]
[327501967,1716126648221,-1135.94127367,0.00032666,2]
[327501968,1716126648231,-1614.01927215,0.00032666,2]
[327501969,1716126648242,-618.95152951,0.00032666,2]
[327501970,1716126648252,-646.6688488,0.00032668,2]
[327501971,1716126648262,-569.0,0.00032677,5]
[327501972,1716126648273,-5800.0,0.00032876,2]
[327501973,1716126648282,-200.0,0.00033045,2]
[327501974,1716126648292,-494.77,0.00033387,2]
[327501975,1716126648302,-328.44,0.0003381,2]
[327501976,1716126648312,-150.0,0.00034548,10]
[327501977,1716126648321,-517.523,0.000346,2]
[327501978,1716126648331,-1642.0,0.000346,2]
[327501979,1716126648340,-911.209,0.000346,2]
[327501980,1716126648350,-1607.13993638,0.00035,4]
[327501981,1716126648360,-201.02796568,0.00035,15]
[327501982,1716126648370,-150.0,0.00035616,2]
[327501983,1716126648379,-494.77,0.00035651,2]
[327501984,1716126648389,-156.55,0.00035681,2]
[327501985,1716126648399,-200.0,0.00036049,2]
[327501986,1716126648409,-500.0,0.00036164,2]
[327501987,1716126648419,-187.8,0.00036559,120]
[327501988,1716126648429,-328.44,0.00036883,2]
[327501989,1716126648438,-619.15036758,0.00037,30]
[327501990,1716126648448,-1223.39,0.00037247,2]
[327501991,1716126648457,-967.45,0.00037247,2]
[327501992,1716126648467,-156.03,0.00037384,2]
[327501993,1716126648476,-318.05,0.00037384,2]
[327501994,1716126648485,-444.0,0.000376,2]
[327501995,1716126648495,-500.0,0.00037602,10]
[327501996,1716126648504,-1442.15800816,0.000377,4]
[327501997,1716126648514,-500.0,0.000377,2]
[327501998,1716126648525,-500.0,0.000377,2]
[327501999,1716126648535,-500.0,0.000377,2]
[327502000,1716126648544,-500.0,0.000377,2]
[327502001,1716126648557,-500.0,0.000377,2]
[327502002,1716126648566,-500.0,0.000377,2]
[327502003,1716126648576,-500.0,0.000377,2]
[327502004,1716126648586,-500.0,0.000377,2]
[327502005,1716126648595,-500.0,0.000377,2]
[327502006,1716126648605,-500.0,0.000377,2]
[327502007,1716126648614,-500.0,0.000377,2]
[327502008,1716126648623,-500.0,0.000377,2]
[327502009,1716126648635,-500.0,0.000377,2]
[327502010,1716126648644,-500.0,0.000377,2]
[327502011,1716126648654,-500.0,0.000377,2]
[327502012,1716126648663,-500.0,0.000377,2]
[327502013,1716126648672,-500.0,0.000377,2]
[327502014,1716126648681,-500.0,0.000377,2]
[327502015,1716126648691,-500.0,0.000377,2]
[327502016,1716126648700,-500.0,0.000377,2]
[327502017,1716126648710,-500.0,0.000377,2]
[327502018,1716126648720,-500.0,0.000377,2]
[327502019,1716126648729,-500.0,0.000377,2]
[327502020,1716126648739,-500.0,0.000377,2]
[327502021,1716126648749,-500.0,0.000377,2]
[327502022,1716126648759,-500.0,0.000377,2]
[327502023,1716126648768,-500.0,0.000377,2]
[327502024,1716126648779,-500.0,0.000377,2]
[327502025,1716126648789,-500.0,0.000377,2]
[327502026,1716126648799,-500.0,0.000377,2]
[327502027,1716126648808,-500.0,0.000377,2]
[327502028,1716126648818,-500.0,0.000377,2]
[327502029,1716126648829,-500.0,0.000377,2]
[327502030,1716126648839,-500.0,0.000377,2]
[327502031,1716126648850,-500.0,0.000377,2]
[327502032,1716126648860,-500.0,0.000377,2]
[327502033,1716126648870,-500.0,0.000377,2]
[327502034,1716126648880,-500.0,0.000377,2]
[327502035,1716126648890,-500.0,0.000377,2]
[327502036,1716126648899,-500.0,0.000377,2]
[327502037,1716126648908,-500.0,0.000377,2]
[327502038,1716126648918,-500.0,0.000377,2]
[327502039,1716126648927,-500.0,0.000377,2]
[327502040,1716126648936,-500.0,0.000377,2]
[327502041,1716126648946,-500.0,0.000377,2]
[327502042,1716126648955,-500.0,0.000377,2]
[327502043,1716126648965,-500.0,0.000377,2]
[327502044,1716126648974,-500.0,0.000377,2]
[327502045,1716126648984,-500.0,0.000377,2]
[327502046,1716126648994,-500.0,0.000377,2]
[327502047,1716126649003,-500.0,0.000377,2]
[327502048,1716126649013,-500.0,0.000377,2]
[327502049,1716126649024,-500.0,0.000377,2]
[327502050,1716126649033,-500.0,0.000377,2]
[327502051,1716126649043,-500.0,0.000377,2]
[327502052,1716126649052,-500.0,0.000377,2]
[327502053,1716126649062,-500.0,0.000377,2]
[327502054,1716126649071,-500.0,0.000377,2]
[327502055,1716126649081,-500.0,0.000377,2]
[327502056,1716126649090,-500.0,0.000377,2]
[327502057,1716126649099,-500.0,0.000377,2]
[327502058,1716126649109,-500.0,0.000377,2]
[327502059,1716126649118,-500.0,0.000377,2]
[327502060,1716126649128,-500.0,0.000377,2]
[327502061,1716126649138,-500.0,0.000377,2]
[327502062,1716126649148,-500.0,0.000377,2]
[327502063,1716126649157,-500.0,0.000377,2]
[327502064,1716126649167,-500.0,0.000377,2]
[327502065,1716126649177,-500.0,0.000377,2]
[327502066,1716126649186,-500.0,0.000377,2]
[327502067,1716126649196,-500.0,0.000377,2]
[327502068,1716126649206,-500.0,0.000377,2]
[327502069,1716126649215,-500.0,0.000377,2]
[327502070,1716126649225,-500.0,0.000377,2]
[327502071,1716126649234,-500.0,0.000377,2]
[327502072,1716126649244,-500.0,0.000377,2]
[327502073,1716126649255,-500.0,0.000377,2]
[327502074,1716126649264,-500.0,0.000377,2]
[327502075,1716126649276,-500.0,0.000377,2]
[327502076,1716126649286,-500.0,0.000377,2]
[327502077,1716126649296,-500.0,0.000377,2]
[327502078,1716126649306,-500.0,0.000377,2]
[327502079,1716126649316,-500.0,0.000377,2]
[327502080,1716126649326,-500.0,0.000377,2]
[327502081,1716126649339,-500.0,0.000377,2]
[327502082,1716126649350,-500.0,0.000377,2]
[327502083,1716126649360,-500.0,0.000377,2]
[327502084,1716126649370,-500.0,0.000377,2]
[327502085,1716126649380,-500.0,0.000377,2]
[327502086,1716126649390,-500.0,0.000377,2]
[327502087,1716126649401,-500.0,0.000377,2]
[327502088,1716126649412,-500.0,0.000377,2]
[327502089,1716126649422,-500.0,0.000377,2]
[327502090,1716126649432,-500.0,0.000377,2]
[327502091,1716126649443,-500.0,0.000377,2]
[327502092,1716126649453,-150.0,0.00037842,2]
[327502093,1716126649463,-494.77,0.00037915,2]
[327502094,1716126649474,-500.0,0.00038356,2]
[327502095,1716126649483,-500.0,0.00038356,2]
[327502096,1716126649494,-500.0,0.00038356,2]
[327502097,1716126649503,-500.0,0.00038356,2]
[327502098,1716126649513,-500.0,0.00038356,2]
[327502099,1716126649524,-500.0,0.00038356,2]
[327502100,1716126649533,-500.0,0.00038356,2]
[327502101,1716126649544,-500.0,0.00038356,2]
[327502102,1716126649556,-500.0,0.00038356,2]
[327502103,1716126649566,-297.02226144,0.00038356,2]
[327502104,1716126649576,-500.0,0.00038356,2]
[327502105,1716126649586,-500.0,0.00038356,2]
[327502106,1716126649597,-500.0,0.00038356,2]
[327502107,1716126649607,-500.0,0.00038356,2]
[327502108,1716126649617,-500.0,0.00038356,2]
[327502109,1716126649627,-500.0,0.00038356,2]
[327502110,1716126649637,-500.0,0.00038356,2]
[327502111,1716126649647,-500.0,0.00038356,2]
[327502112,1716126649657,-500.0,0.00038356,2]
[327502113,1716126649667,-500.0,0.00038356,2]
[327502114,1716126649678,-500.0,0.00038356,2]
[327502115,1716126649688,-500.0,0.00038356,2]
[327502116,1716126649698,-500.0,0.00038356,2]
[327502117,1716126649884,-500.0,0.00038356,2]
[327502118,1716126649894,-500.0,0.00038356,2]
[327502119,1716126649904,-500.0,0.00038356,2]
[327502120,1716126649913,-500.0,0.00038356,2]
[327502121,1716126649923,-500.0,0.00038356,2]
[327502122,1716126649932,-500.0,0.00038356,2]
[327502123,1716126649942,-500.0,0.00038356,2]
[327502124,1716126649951,-500.0,0.00038356,2]
[327502125,1716126649961,-500.0,0.00038356,2]
[327502126,1716126649971,-500.0,0.00038356,2]
[327502127,1716126649980,-500.0,0.00038356,2]
[327502128,1716126649990,-500.0,0.00038356,2]
[327502129,1716126649999,-500.0,0.00038356,2]
[327502130,1716126650009,-500.0,0.00038356,2]
[327502131,1716126650020,-500.0,0.00038356,2]
[327502132,1716126650030,-500.0,0.00038356,2]
[327502133,1716126650040,-500.0,0.00038356,2]
[327502134,1716126650050,-500.0,0.00038356,2]
[327502135,1716126650060,-500.0,0.00038356,2]
[327502136,1716126650069,-500.0,0.00038356,2]
[327502137,1716126650079,-500.0,0.00038356,2]
[327502138,1716126650088,-500.0,0.00038356,2]
[327502139,1716126650098,-500.0,0.00038356,2]
[327502140,1716126650108,-500.0,0.00038356,2]
[327502141,1716126650118,-500.0,0.00038356,2]
[327502142,1716126650127,-500.0,0.00038356,2]
[327502143,1716126650137,-500.0,0.00038356,2]
[327502144,1716126650146,-500.0,0.00038356,2]
[327502145,1716126650155,-500.0,0.00038356,2]
[327502146,1716126650164,-500.0,0.00038356,2]
[327502147,1716126650174,-500.0,0.00038356,2]
[327502148,1716126650184,-500.0,0.00038356,2]
[327502149,1716126650193,-500.0,0.00038356,2]
[327502150,1716126650203,-500.0,0.00038356,2]
[327502151,1716126650214,-500.0,0.00038356,2]
[327502152,1716126650223,-500.0,0.00038356,2]
[327502153,1716126650233,-500.0,0.00038356,2]
[327502154,1716126650243,-500.0,0.00038356,2]
[327502155,1716126650252,-500.0,0.00038356,2]
[327502156,1716126650262,-500.0,0.00038356,2]
[327502157,1716126650272,-500.0,0.00038356,2]
[327502158,1716126650281,-500.0,0.00038356,2]
[327502159,1716126650291,-500.0,0.00038356,2]
[327502160,1716126650301,-500.0,0.00038356,2]
[327502161,1716126650311,-500.0,0.00038356,2]
[327502162,1716126650321,-500.0,0.00038356,2]
[327502163,1716126650330,-500.0,0.00038356,2]
[327502164,1716126650340,-500.0,0.00038356,2]
[327502165,1716126650349,-500.0,0.00038356,2]
[327502166,1716126650359,-500.0,0.00038356,2]
[327502167,1716126650369,-500.0,0.00038356,2]
[327502168,1716126650379,-500.0,0.00038356,2]
[327502169,1716126650388,-500.0,0.00038356,2]
[327502170,1716126650398,-500.0,0.00038356,2]
[327502171,1716126650407,-500.0,0.00038356,2]
[327502172,1716126650417,-500.0,0.00038356,2]
[327502173,1716126650426,-500.0,0.00038356,2]
[327502174,1716126650436,-500.0,0.00038356,2]
[327502175,1716126650445,-500.0,0.00038356,2]
[327502176,1716126650455,-500.0,0.00038356,2]
[327502177,1716126650465,-500.0,0.00038356,2]
[327502178,1716126650475,-500.0,0.00038356,2]
[327502179,1716126650485,-500.0,0.00038356,2]
[327502180,1716126650494,-500.0,0.00038356,2]
[327502181,1716126650504,-500.0,0.00038356,2]
[327502182,1716126650514,-500.0,0.00038356,2]
[327502183,1716126650524,-500.0,0.00038356,2]
[327502184,1716126650533,-500.0,0.00038356,2]
[327502185,1716126650542,-500.0,0.00038356,2]
[327502186,1716126650553,-500.0,0.00038356,2]
[327502187,1716126650563,-500.0,0.00038356,2]
[327502188,1716126650573,-500.0,0.00038356,2]
[327502189,1716126650583,-500.0,0.00038356,2]
[327502190,1716126650592,-500.0,0.00038356,2]
[327502191,1716126650603,-500.0,0.00038356,2]
[327502192,1716126650612,-500.0,0.00038356,2]
[327502193,1716126650622,-500.0,0.00038356,2]
[327502194,1716126650632,-500.0,0.00038356,2]
[327502195,1716126650642,-500.0,0.00038356,2]
[327502196,1716126650652,-500.0,0.00038356,2]
[327502197,1716126650661,-500.0,0.00038356,2]
[327502198,1716126650671,-500.0,0.00038356,2]
[327502199,1716126650680,-500.0,0.00038356,2]
[327502200,1716126650690,-500.0,0.00038356,2]
[327502201,1716126650700,-500.0,0.00038356,2]
[327502202,1716126650709,-500.0,0.00038356,2]
[327502203,1716126650719,-500.0,0.00038356,2]
[327502204,1716126650729,-500.0,0.00038356,2]
[327502205,1716126650738,-500.0,0.00038356,2]
[327502206,1716126650748,-500.0,0.00038356,2]
[327502207,1716126650757,-500.0,0.00038356,2]
[327502208,1716126650767,-500.0,0.00038356,2]
[327502209,1716126650779,-500.0,0.00038356,2]
[327502210,1716126650788,-500.0,0.00038356,2]
[327502211,1716126650797,-500.0,0.00038356,2]
[327502212,1716126650806,-500.0,0.00038356,2]
[327502213,1716126650816,-500.0,0.00038356,2]
[327502214,1716126650826,-500.0,0.00038356,2]
[327502215,1716126650835,-500.0,0.00038356,2]
[327502216,1716126650844,-500.0,0.00038356,2]
[327502217,1716126650854,-500.0,0.00038356,2]
[327502218,1716126650863,-500.0,0.00038356,2]
[327502219,1716126650873,-500.0,0.00038356,2]
[327502220,1716126650883,-500.0,0.00038356,2]
[327502221,1716126650892,-500.0,0.00038356,2]
[327502222,1716126650902,-500.0,0.00038356,2]
[327502223,1716126650911,-500.0,0.00038356,2]